[Event "1.FrauenBL 2018-19"]
[Site "Berlin"]
[Date "2019.03.02"]
[Round "10.4"]
[White "Barpiyeva, Gulsana"]
[Black "Mai, Iris"]
[Result "0-1"]
[ECO "D46"]
[WhiteElo "2028"]
[BlackElo "2035"]
[Annotator "NA"]
[PlyCount "98"]
[EventDate "2018.10.27"]
[EventType "team-tourn"]
[EventCountry "GER"]
[SourceTitle "playchess.com"]
[Source "ChessBase"]
[SourceQuality "1"]
[WhiteTeam "Hofheim"]
[BlackTeam "Pankow"]
[TimeControl "40/5400+30:1800+30"]

1. d4 {[%emt 0:00:09]} d5 {[%emt 0:00:25]} 2. c4 {[%emt 0:00:23]} e6 {[%emt 0:01:18]} 3. Nc3 {[%emt 0:00:12]} c6 {[%emt 0:00:32]} 4. e3 {[%emt 0:00:21]} Nf6 {[%emt 0:01:23]} 5. Nf3 {[%emt 0:00:14]} Nbd7 {[%emt 0:02:19]} 6. Bd3 {[%emt 0:00:00]} Be7 {[%emt 0:04:53]} 7. O-O {[%emt 0:02:28]} O-O {[%emt 0:00:04]} 8. b3 {[%emt 0:01:32]} Re8 {[%emt 0:04:08]} 9. Bb2 {[%emt 0:00:52]} b6 {[%emt 0:08:37]} 10. Rc1 {[%emt 0:08:14]} Bb7 {[%emt 0:00:12]} 11. Qe2 {[%emt 0:01:07]} Bd6 {[%emt 0:06:07]} 12. Rfd1 {[%emt 0:04:55]} Qe7 {[%emt 0:00:48]} 13. cxd5 {[%emt 0:06:44]} exd5 {[%emt 0:04:48]} 14. Nh4 {[%emt 0:01:46]} Qd8 {[%emt 0:05:39]} 15. Nf5 {[%emt 0:05:07]} Bf8 {[%emt 0:00:05]} 16. Qc2 {[%emt 0:03:27]} g6 {[%emt 0:08:37]} 17. Ng3 {[%emt 0:02:04]} Rc8 {[%emt 0:00:18]} 18. Qb1 {[%emt 0:02:13]} Ng4 {[%emt 0:07:35]} 19. Re1 {[%emt 0:17:16]} Qh4 {[%emt 0:04:11]} 20. Nf1 {[%emt 0:16:27]} Qxf2+ {[%emt 0:02:30]} 21. Kh1 {[%emt 0:00:07]} Qh4 {[%emt 0:03:45]} 22. Re2 {[%emt 0:06:08]} Nf2+ {[%emt 0:07:05]} 23. Kg1 {[%emt 0:00:22]} Nxd3 {[%emt 0:00:21]} 24. Qxd3 {[%emt 0:00:12]} Nf6 {[%emt 0:00:11]} 25. Rce1 {[%emt 0:04:22]} Ne4 {[%emt 0:03:15]} 26. Nxe4 {[%emt 0:01:04]} Qxe4 {[%emt 0:01:37]} 27. Qc3 {[%emt 0:00:47]} a5 {[%emt 0:03:32]} 28. Ng3 {[%emt 0:01:32]} Qg4 {[%emt 0:04:06]} 29. a3 {[%emt 0:01:14]} h5 {[%emt 0:04:34]} 30. Rf2 {[%emt 0:02:50]} Ba6 {[%emt 0:03:01]} 31. Ne2 {[%emt 0:02:33]} Bxe2 {[%emt 0:01:02]} 32. Rfxe2 {[%emt 0:00:11]} Re4 {[%emt 0:00:53]} 33. Rf2 {[%emt 0:02:26]} Qe6 {[%emt 0:02:45]} 34. Bc1 {[%emt 0:01:44]} Bh6 {[%emt 0:03:36]} 35. Rc2 {[%emt 0:02:03]} h4 {[%emt 0:00:47]} 36. Qd3 {[%emt 0:01:52]} h3 {[%emt 0:01:01]} 37. g3 {[%emt 0:00:32]} Bg7 {[%emt 0:00:59]} 38. Rd1 {[%emt 0:01:05]} Bf6 {[%emt 0:01:20]} 39. Bd2 {[%emt 0:01:24]} Re8 {[%emt 0:00:26]} 40. Rdc1 {[%emt 0:00:55]} Qg4 {[%emt 0:00:55]} 41. Qf1 {[%emt 0:06:24]} Bg5 {[%emt 0:03:58]} 42. Rxc6 {[%emt 0:14:52]} Rxe3 {[%emt 0:04:30]} 43. Be1 {[%emt 0:06:06]} Rf3 {[%emt 0:04:04]} 44. Bf2 {[%emt 0:02:33]} Rxf2 {[%emt 0:02:29]} 45. Ra1 Z0 46. Qd1 Qf4 47. gxf4 Z0 48. Rc4 Z0 49. a4 Rf1+ {Bd7+ [%clk ] --- [%clk ] e5+ [%clk ]} 0-1

[Event "1.FrauenBL 2018-19"]
[Site "Berlin"]
[Date "2019.03.02"]
[Round "10.5"]
[White "Misanovic, Vesna"]
[Black "Arakhamia-Grant, Ketevan"]
[Result "1/2-1/2"]
[ECO "E70"]
[WhiteElo "2249"]
[BlackElo "2359"]
[Annotator "NA"]
[PlyCount "41"]
[EventDate "2018.10.27"]
[EventType "team-tourn"]
[EventCountry "GER"]
[SourceTitle "playchess.com"]
[Source "ChessBase"]
[SourceQuality "1"]
[WhiteTeam "SF Deizisau"]
[BlackTeam "OSG Baden-Baden"]
[TimeControl "40/5400+30:1800+30"]

1. d4 {[%emt 0:00:00]} Nf6 {[%emt 0:00:18]} 2. c4 {[%emt 0:00:58]} g6 {[%emt 0:00:44]} 3. Nc3 {[%emt 0:00:06]} Bg7 {[%emt 0:00:03]} 4. e4 {[%emt 0:00:01]} d6 {[%emt 0:00:02]} 5. Bd3 {[%emt 0:00:12]} O-O {[%emt 0:00:09]} 6. Nge2 {[%emt 0:00:00]} Nc6 {[%emt 0:00:12]} 7. O-O {[%emt 0:04:27]} e5 {[%emt 0:00:06]} 8. d5 {[%emt 0:00:58]} Nd4 {[%emt 0:00:33]} 9. Nxd4 {[%emt 0:00:00]} exd4 {[%emt 0:00:04]} 10. Nb5 {[%emt 0:00:00]} Re8 {[%emt 0:04:38]} 11. Nxd4 {[%emt 0:05:50]} Nxe4 {[%emt 0:05:18]} 12. Bc2 {[%emt 0:08:12]} Bd7 {[%emt 0:05:15]} 13. Rb1 {[%emt 0:03:08]} Qh4 {[%emt 0:07:23]} 14. Nf3 {[%emt 0:04:08]} Qh5 {[%emt 0:00:12]} 15. Ba4 {[%emt 0:10:15]} b5 {[%emt 0:12:48]} 16. Bxb5 {[%emt 0:01:38]} Bxb5 {[%emt 0:16:14]} 17. cxb5 {[%emt 0:14:06]} Nf6 {[%emt 0:00:00]} 18. Bg5 {[%emt 0:00:00]} Ne4 {[%emt 0:00:00]} 19. Be3 {[%emt 0:00:00]} Nf6 {[%emt 0:09:50]} 20. Bg5 {[%emt 0:09:50]} Ne4 {[%emt 0:02:11]} 21. Be3 {[%emt 0:00:00]} 1/2-1/2

[Event "1.FrauenBL 2018-19"]
[Site "Berlin"]
[Date "2019.03.02"]
[Round "10.5"]
[White "Warakomska, Anna"]
[Black "Fuchs, Judith"]
[Result "1-0"]
[ECO "A45"]
[WhiteElo "2214"]
[BlackElo "2256"]
[Annotator "NA"]
[PlyCount "43"]
[EventDate "2018.10.27"]
[EventType "team-tourn"]
[EventCountry "GER"]
[SourceTitle "playchess.com"]
[Source "ChessBase"]
[SourceQuality "1"]
[WhiteTeam "Rodewischer SM"]
[BlackTeam "Hamburger SK"]
[TimeControl "40/5400+30:1800+30"]

1. d4 {[%emt 0:00:07]} Nf6 {[%emt 0:00:08]} 2. Bf4 {[%emt 0:00:03]} c5 {[%emt 0:00:29]} 3. e3 {[%emt 0:02:48]} Qb6 {[%emt 0:00:38]} 4. dxc5 {[%emt 0:13:17]} Qxb2 {[%emt 0:08:40]} 5. Nd2 {[%emt 0:00:10]} Nc6 {[%emt 0:15:38]} 6. Ngf3 {[%emt 0:09:08]} Qc3 {[%emt 0:06:25]} 7. Bc4 {[%emt 0:15:02]} e5 {[%emt 0:05:57]} 8. Bg3 {[%emt 0:03:00]} Bxc5 {[%emt 0:05:23]} 9. O-O {[%emt 0:06:47]} O-O {[%emt 0:05:29]} 10. Rb1 {[%emt 0:06:05]} d6 {[%emt 0:02:22]} 11. Bh4 {[%emt 0:04:29]} Bf5 {[%emt 0:06:09]} 12. Bxf6 {[%emt 0:05:52]} gxf6 {[%emt 0:00:10]} 13. e4 {[%emt 0:01:51]} Bg4 {[%emt 0:05:33]} 14. Rb3 {[%emt 0:01:59]} Bxf3 {[%emt 0:06:02]} 15. Qc1 {[%emt 0:00:55]} Qa5 {[%emt 0:02:22]} 16. Nxf3 {[%emt 0:02:16]} d5 {[%emt 0:19:40]} 17. Qh6 {[%emt 0:08:13]} Ne7 {[%emt 0:06:16]} 18. Nh4 {[%emt 0:07:00]} Rfd8 {[%emt 0:00:42]} 19. Nf5 {[%emt 0:01:37]} Nxf5 {[%emt 0:00:05]} 20. exf5 {[%emt 0:00:03]} Bxf2+ {[%emt 0:01:34]} 21. Rxf2 {[%emt 0:00:30]} Qe1+ {[%emt 0:00:19]} 22. Bf1 {[%emt 0:00:35]} 1-0

[Event "1.FrauenBL 2018-19"]
[Site "Berlin"]
[Date "2019.03.02"]
[Round "10.5"]
[White "Duessler, Stefanie"]
[Black "Savina, Anastasia"]
[Result "0-1"]
[ECO "B31"]
[WhiteElo "2105"]
[BlackElo "2350"]
[Annotator "NA"]
[PlyCount "92"]
[EventDate "2018.10.27"]
[EventType "team-tourn"]
[EventCountry "GER"]
[SourceTitle "playchess.com"]
[Source "ChessBase"]
[SourceQuality "1"]
[WhiteTeam "SK Lehrte"]
[BlackTeam "Bad Koenigshofen"]
[TimeControl "40/5400+30:1800+30"]

1. e4 {[%emt 0:00:03]} c5 {[%emt 0:00:12]} 2. Nf3 {[%emt 0:00:05]} Nc6 {[%emt 0:00:03]} 3. Bb5 {[%emt 0:00:05]} g6 {[%emt 0:01:00]} 4. Bxc6 {[%emt 0:01:02]} bxc6 {[%emt 0:01:20]} 5. O-O {[%emt 0:00:00]} Bg7 {[%emt 0:00:03]} 6. c3 {[%emt 0:00:00]} Nf6 {[%emt 0:02:53]} 7. Re1 {[%emt 0:00:45]} O-O {[%emt 0:00:00]} 8. d4 {[%emt 0:01:48]} cxd4 {[%emt 0:04:27]} 9. cxd4 {[%emt 0:00:03]} d5 {[%emt 0:00:11]} 10. e5 {[%emt 0:01:59]} Ne4 {[%emt 0:00:00]} 11. Nc3 {[%emt 0:00:30]} Nxc3 {[%emt 0:00:00]} 12. bxc3 {[%emt 0:00:02]} Qa5 {[%emt 0:06:25]} 13. Qb3 {[%emt 0:04:24]} Bg4 {[%emt 0:13:21]} 14. Nd2 {[%emt 0:03:05]} Bh6 {[%emt 0:00:00]} 15. Qb4 {[%emt 0:25:57]} Qxb4 {[%emt 0:13:45]} 16. cxb4 {[%emt 0:00:00]} Rfb8 {[%emt 0:00:29]} 17. h3 {[%emt 0:00:00]} Bf5 {[%emt 0:00:00]} 18. a3 {[%emt 0:00:00]} a5 {[%emt 0:13:14]} 19. bxa5 {[%emt 0:00:00]} Bf8 {[%emt 0:00:00]} 20. Nf1 {[%emt 0:00:00]} Rxa5 {[%emt 0:08:15]} 21. Ne3 {[%emt 0:01:12]} Bd3 {[%emt 0:04:42]} 22. Rd1 {[%emt 0:03:18]} Be2 {[%emt 0:00:00]} 23. Rd2 {[%emt 0:05:11]} Bb5 {[%emt 0:00:00]} 24. Rb2 {[%emt 0:01:58]} Ra4 {[%emt 0:13:15]} 25. Nc2 {[%emt 0:32:08]} e6 {[%emt 0:01:46]} 26. Bd2 {[%emt 0:01:46]} Rba8 {[%emt 0:07:00]} 27. Bb4 {[%emt 0:00:00]} Bd3 {[%emt 0:01:17]} 28. Rc1 {[%emt 0:00:00]} Bxc2 {[%emt 0:02:21]} 29. Rcxc2 {[%emt 0:00:00]} Bxb4 {[%emt 0:00:20]} 30. Rxb4 {[%emt 0:00:00]} Rxb4 {[%emt 0:00:47]} 31. axb4 {[%emt 0:00:00]} Ra1+ {[%emt 0:00:36]} 32. Kh2 {[%emt 0:00:00]} Rb1 {[%emt 0:00:16]} 33. Rxc6 {[%emt 0:00:00]} Rxb4 {[%emt 0:00:08]} 34. Kg3 {[%emt 0:03:32]} g5 {[%emt 0:04:42]} 35. h4 {[%emt 0:13:55]} gxh4+ {[%emt 0:00:28]} 36. Kxh4 {[%emt 0:00:00]} Rxd4+ {[%emt 0:00:00]} 37. Kg3 {[%emt 0:00:00]} Kg7 {[%emt 0:00:52]} 38. f4 {[%emt 0:00:00]} Kg6 {[%emt 0:00:00]} 39. Kf3 {[%emt 0:00:00]} Rc4 {[%emt 0:05:09]} 40. Rd6 {[%emt 0:06:29]} Rc3+ {[%emt 0:00:24]} 41. Kf2 {[%emt 0:23:52]} Kf5 {[%emt 0:15:45]} 42. g3 {[%emt 0:00:00]} Rc7 {[%emt 0:00:00]} 43. Rd8 {[%emt 0:00:00]} Ke4 {[%emt 0:07:39]} 44. Rh8 {[%emt 0:00:00]} Rc2+ {[%emt 0:02:26]} 45. Ke1 {[%emt 0:00:00]} Ke3 {[%emt 0:00:35]} 46. Kd1 {[%emt 0:02:57]} Rh2 {[%emt 0:00:07]} 0-1

[Event "1.FrauenBL 2018-19"]
[Site "Berlin"]
[Date "2019.03.02"]
[Round "10.6"]
[White "Obolentseva, Alexandra"]
[Black "Boehm, Jana"]
[Result "1/2-1/2"]
[ECO "D95"]
[WhiteElo "2324"]
[BlackElo "2004"]
[Annotator "NA"]
[PlyCount "110"]
[EventDate "2018.10.27"]
[EventType "team-tourn"]
[EventCountry "GER"]
[SourceTitle "playchess.com"]
[Source "ChessBase"]
[SourceQuality "1"]
[WhiteTeam "Bad Koenigshofen"]
[BlackTeam "SK Lehrte"]
[TimeControl "40/5400+30:1800+30"]

1. d4 {[%emt 0:00:04]} Nf6 {[%emt 0:00:00]} 2. c4 {[%emt 0:00:07]} g6 {[%emt 0:00:22]} 3. Nc3 {[%emt 0:00:08]} d5 {[%emt 0:00:04]} 4. e3 {[%emt 0:00:13]} Bg7 {[%emt 0:00:24]} 5. Qb3 {[%emt 0:00:17]} c6 {[%emt 0:04:35]} 6. Nf3 {[%emt 0:04:06]} O-O {[%emt 0:01:30]} 7. cxd5 {[%emt 0:01:29]} cxd5 {[%emt 0:06:33]} 8. Bd3 {[%emt 0:01:04]} Nc6 {[%emt 0:01:48]} 9. O-O {[%emt 0:00:11]} Na5 {[%emt 0:11:11]} 10. Qc2 {[%emt 0:00:37]} Bg4 {[%emt 0:00:00]} 11. Ne5 {[%emt 0:00:29]} Rc8 {[%emt 0:07:08]} 12. b3 {[%emt 0:04:24]} Nc6 {[%emt 0:02:46]} 13. Nxg4 {[%emt 0:01:38]} Nxg4 {[%emt 0:00:09]} 14. Qe2 {[%emt 0:01:35]} h5 {[%emt 0:03:23]} 15. h3 {[%emt 0:01:52]} Nf6 {[%emt 0:03:18]} 16. Bb2 {[%emt 0:00:21]} Qd7 {[%emt 0:05:58]} 17. Rac1 {[%emt 0:00:14]} Qe6 {[%emt 0:02:35]} 18. Na4 {[%emt 0:01:14]} Nd7 {[%emt 0:05:44]} 19. Ba3 {[%emt 0:01:16]} a6 {[%emt 0:02:10]} 20. Rc2 {[%emt 0:00:47]} b5 {[%emt 0:04:54]} 21. Nc5 {[%emt 0:00:14]} Nxc5 {[%emt 0:00:15]} 22. Bxc5 {[%emt 0:00:42]} Na5 {[%emt 0:04:03]} 23. Rfc1 {[%emt 0:01:00]} Nb7 {[%emt 0:01:16]} 24. Bb4 {[%emt 0:02:16]} Bf6 {[%emt 0:08:07]} 25. Qf3 {[%emt 0:03:10]} Rxc2 {[%emt 0:02:14]} 26. Rxc2 {[%emt 0:00:06]} Qd7 {[%emt 0:02:03]} 27. Qd1 {[%emt 0:02:15]} Rc8 {[%emt 0:01:22]} 28. a4 {[%emt 0:00:05]} bxa4 {[%emt 0:02:23]} 29. bxa4 {[%emt 0:03:45]} a5 {[%emt 0:00:29]} 30. Bd2 {[%emt 0:01:41]} Rxc2 {[%emt 0:04:30]} 31. Qxc2 {[%emt 0:00:07]} e6 {[%emt 0:00:47]} 32. Ba6 {[%emt 0:01:08]} Bd8 {[%emt 0:00:44]} 33. Bb5 {[%emt 0:01:02]} Qc7 {[%emt 0:00:55]} 34. Qb3 {[%emt 0:01:01]} Nd6 {[%emt 0:01:01]} 35. Bd3 {[%emt 0:00:19]} Qb6 {[%emt 0:00:56]} 36. Qc2 {[%emt 0:01:14]} Kg7 {[%emt 0:01:13]} 37. Kf1 {[%emt 0:01:54]} Qc7 {[%emt 0:01:03]} 38. Qb3 {[%emt 0:02:30]} Qb6 {[%emt 0:00:44]} 39. Qc3 {[%emt 0:00:41]} Qc7 {[%emt 0:00:29]} 40. Ke2 {[%emt 0:00:43]} Qxc3 {[%emt 0:04:06]} 41. Bxc3 {[%emt 0:30:06]} f5 {[%emt 0:32:52]} 42. Bb2 {[%emt 0:01:06]} Kf6 {[%emt 0:01:41]} 43. f3 {[%emt 0:02:01]} Bb6 {[%emt 0:00:00]} 44. Ba3 {[%emt 0:00:00]} Bc7 {[%emt 0:00:00]} 45. Bb5 {[%emt 0:00:00]} Kf7 {[%emt 0:00:00]} 46. Kd3 {[%emt 0:00:00]} Kf6 {[%emt 0:00:00]} 47. Bc6 {[%emt 0:00:00]} g5 {[%emt 0:00:00]} 48. e4 {[%emt 0:00:00]} fxe4+ {[%emt 0:00:00]} 49. fxe4 {[%emt 0:00:00]} Nxe4 {[%emt 0:00:00]} 50. Be8 {[%emt 0:00:00]} h4 {[%emt 0:00:00]} 51. Bb2 {[%emt 0:00:00]} Bb6 {[%emt 0:00:00]} 52. Bc3 {[%emt 0:00:00]} Kf5 {[%emt 0:00:00]} 53. Be1 {[%emt 0:00:00]} Kf6 {[%emt 0:00:00]} 54. Bc3 {[%emt 0:00:00]} Kf5 {[%emt 0:00:00]} 55. Be1 {[%emt 0:00:00]} Kf6 {[%emt 0:00:00]} 1/2-1/2

[Event "1.FrauenBL 2018-19"]
[Site "Berlin"]
[Date "2019.03.02"]
[Round "10.6"]
[White "Heinemann, Josefine"]
[Black "Straub, Natalia"]
[Result "1-0"]
[ECO "C10"]
[WhiteElo "2238"]
[BlackElo "2146"]
[Annotator "NA"]
[PlyCount "83"]
[EventDate "2018.10.27"]
[EventType "team-tourn"]
[EventCountry "GER"]
[SourceTitle "playchess.com"]
[Source "ChessBase"]
[SourceQuality "1"]
[WhiteTeam "OSG Baden-Baden"]
[BlackTeam "SF Deizisau"]
[TimeControl "40/5400+30:1800+30"]

1. e4 {[%emt 0:00:03]} e6 {[%emt 0:00:04]} 2. d4 {[%emt 0:00:07]} d5 {[%emt 0:00:07]} 3. Nd2 {[%emt 0:00:06]} dxe4 {[%emt 0:00:19]} 4. Nxe4 {[%emt 0:00:06]} Nd7 {[%emt 0:00:05]} 5. Nf3 {[%emt 0:00:09]} Ngf6 {[%emt 0:00:05]} 6. Nxf6+ {[%emt 0:00:07]} Nxf6 {[%emt 0:00:26]} 7. g3 {[%emt 0:00:12]} c5 {[%emt 0:07:42]} 8. Bg2 {[%emt 0:00:20]} cxd4 {[%emt 0:13:51]} 9. Qxd4 {[%emt 0:00:21]} Qxd4 {[%emt 0:10:55]} 10. Nxd4 {[%emt 0:00:18]} a6 {[%emt 0:19:05]} 11. O-O {[%emt 0:07:50]} Bd6 {[%emt 0:03:13]} 12. Rd1 {[%emt 0:03:01]} Bc7 {[%emt 0:04:44]} 13. c4 {[%emt 0:06:28]} O-O {[%emt 0:02:43]} 14. b3 {[%emt 0:05:41]} Re8 {[%emt 0:07:20]} 15. Nc2 {[%emt 0:08:13]} h6 {[%emt 0:08:06]} 16. Ba3 {[%emt 0:01:03]} Ra7 {[%emt 0:07:39]} 17. Bd6 {[%emt 0:04:53]} Bxd6 {[%emt 0:02:46]} 18. Rxd6 {[%emt 0:00:27]} Kf8 {[%emt 0:01:07]} 19. Rad1 {[%emt 0:04:45]} Ke7 {[%emt 0:00:09]} 20. Ne3 {[%emt 0:05:06]} b5 {[%emt 0:02:29]} 21. c5 {[%emt 0:03:02]} Bd7 {[%emt 0:00:43]} 22. c6 {[%emt 0:07:44]} Bc8 {[%emt 0:00:04]} 23. R6d2 {[%emt 0:00:59]} Rc7 {[%emt 0:03:20]} 24. f4 {[%emt 0:04:40]} g5 {[%emt 0:00:00]} 25. fxg5 {[%emt 0:01:17]} hxg5 {[%emt 0:00:56]} 26. Rf1 {[%emt 0:00:58]} Rf8 {[%emt 0:03:19]} 27. Re1 {[%emt 0:03:25]} Ra7 {[%emt 0:01:58]} 28. b4 {[%emt 0:02:14]} e5 {[%emt 0:00:33]} 29. Nd5+ {[%emt 0:02:06]} Nxd5 30. Rxe5+ {[%emt 0:01:36]} Be6 {[%emt 0:00:35]} 31. Rdxd5 {[%emt 0:01:57]} f6 {[%emt 0:00:48]} 32. Re2 {[%emt 0:01:32]} Kf7 {[%emt 0:00:40]} 33. Rd6 {[%emt 0:00:51]} Bc4 {[%emt 0:00:08]} 34. Red2 {[%emt 0:01:15]} Re8 {[%emt 0:00:17]} 35. Kf2 {[%emt 0:01:14]} Ree7 {[%emt 0:00:57]} 36. a3 {[%emt 0:01:48]} a5 {[%emt 0:00:28]} 37. Rd7 {[%emt 0:01:54]} axb4 {[%emt 0:00:27]} 38. axb4 {[%emt 0:01:01]} Rc7 {[%emt 0:00:42]} 39. Rxc7 {[%emt 0:01:48]} Rxc7 {[%emt 0:00:02]} 40. Rd7+ {[%emt 0:01:13]} Rxd7 {[%emt 0:00:04]} 41. cxd7 {[%emt 0:30:04]} Ke7 {[%emt 0:30:14]} 42. Bc6 {[%emt 0:00:06]} 1-0

[Event "1.FrauenBL 2018-19"]
[Site "Berlin"]
[Date "2019.03.02"]
[Round "10.6"]
[White "Zahn, Alina"]
[Black "Korenova, Martina"]
[Result "1-0"]
[ECO "C54"]
[WhiteElo "2117"]
[BlackElo "2172"]
[Annotator "NA"]
[PlyCount "101"]
[EventDate "2018.10.27"]
[EventType "team-tourn"]
[EventCountry "GER"]
[SourceTitle "playchess.com"]
[Source "ChessBase"]
[SourceQuality "1"]
[WhiteTeam "Hamburger SK"]
[BlackTeam "Rodewischer SM"]
[TimeControl "40/5400+30:1800+30"]

1. e4 {[%emt 0:00:04]} e5 {[%emt 0:00:00]} 2. Nf3 {[%emt 0:00:02]} Nc6 {[%emt 0:00:17]} 3. Bc4 {[%emt 0:00:11]} Bc5 {[%emt 0:00:00]} 4. c3 Nf6 {[%emt 0:00:07]} 5. d3 {[%emt 0:00:16]} d6 {[%emt 0:00:06]} 6. Bb3 {[%emt 0:00:17]} O-O {[%emt 0:00:37]} 7. O-O {[%emt 0:00:32]} a5 {[%emt 0:02:25]} 8. h3 {[%emt 0:05:00]} Re8 {[%emt 0:02:20]} 9. Re1 {[%emt 0:02:32]} h6 {[%emt 0:08:49]} 10. Nbd2 {[%emt 0:05:47]} b5 {[%emt 0:00:00]} 11. a4 {[%emt 0:05:55]} b4 {[%emt 0:05:25]} 12. Nc4 {[%emt 0:05:49]} bxc3 {[%emt 0:12:42]} 13. bxc3 {[%emt 0:06:23]} Rb8 {[%emt 0:00:00]} 14. Be3 {[%emt 0:00:38]} Bxe3 {[%emt 0:03:12]} 15. Nxe3 {[%emt 0:02:34]} Be6 {[%emt 0:00:20]} 16. Rb1 {[%emt 0:00:20]} Qd7 {[%emt 0:01:51]} 17. Bc4 {[%emt 0:04:11]} Bxc4 {[%emt 0:01:50]} 18. Nxc4 {[%emt 0:00:10]} Rxb1 {[%emt 0:07:58]} 19. Qxb1 {[%emt 0:00:11]} Rb8 {[%emt 0:00:05]} 20. Qc2 {[%emt 0:01:07]} Qd8 {[%emt 0:00:00]} 21. Rb1 {[%emt 0:16:51]} Rxb1+ {[%emt 0:32:50]} 22. Qxb1 {[%emt 0:00:00]} Qa8 {[%emt 0:00:15]} 23. Qb5 {[%emt 0:22:19]} g6 {[%emt 0:05:11]} 24. Nfd2 {[%emt 0:05:11]} Kg7 {[%emt 0:00:12]} 25. Nb3 {[%emt 0:00:12]} Nd7 {[%emt 0:00:07]} 26. Ne3 {[%emt 0:00:00]} Nb6 {[%emt 0:10:51]} 27. Nd5 {[%emt 0:10:58]} Nxd5 {[%emt 0:00:40]} 28. exd5 {[%emt 0:00:00]} Ne7 {[%emt 0:00:00]} 29. c4 {[%emt 0:00:00]} c6 {[%emt 0:01:15]} 30. Qb6 {[%emt 0:01:55]} Kf8 {[%emt 0:02:16]} 31. dxc6 {[%emt 0:00:00]} Nxc6 {[%emt 0:01:31]} 32. Qc7 {[%emt 0:00:00]} Qb8 {[%emt 0:00:00]} 33. Qxc6 {[%emt 0:04:19]} Qxb3 {[%emt 0:00:00]} 34. Qxd6+ {[%emt 0:00:04]} Kg8 {[%emt 0:00:41]} 35. Qd8+ {[%emt 0:00:05]} Kh7 {[%emt 0:00:11]} 36. Qxa5 {[%emt 0:00:00]} Qxd3 {[%emt 0:00:46]} 37. Qd5 {[%emt 0:00:00]} Qf5 {[%emt 0:02:23]} 38. c5 {[%emt 0:00:00]} Qf4 {[%emt 0:00:27]} 39. g3 {[%emt 0:00:54]} Qxa4 {[%emt 0:00:35]} 40. Qxf7+ {[%emt 0:02:00]} Kh8 {[%emt 0:00:08]} 41. Qf6+ {[%emt 0:30:54]} Kh7 {[%emt 0:30:04]} 42. Qxe5 {[%emt 0:00:46]} Qd1+ {[%emt 0:00:10]} 43. Kg2 {[%emt 0:00:10]} Qc2 {[%emt 0:00:04]} 44. Qd5 {[%emt 0:01:28]} Kg7 {[%emt 0:00:54]} 45. c6 {[%emt 0:00:00]} h5 {[%emt 0:00:01]} 46. h4 {[%emt 0:00:00]} Kf6 {[%emt 0:01:54]} 47. Qd8+ {[%emt 0:00:00]} Kf7 {[%emt 0:00:00]} 48. c7 {[%emt 0:00:00]} Qc6+ {[%emt 0:00:00]} 49. Kh2 {[%emt 0:00:00]} Qc5 {[%emt 0:00:00]} 50. Qd7+ {[%emt 0:00:00]} Kf6 {[%emt 0:00:00]} 51. Kg2 {[%emt 0:00:00]} 1-0

[Event "1.FrauenBL 2018-19"]
[Site "Berlin"]
[Date "2019.03.02"]
[Round "10.7"]
[White "Exler, Veronika"]
[Black "Unuk, Laura"]
[Result "0-1"]
[ECO "E11"]
[WhiteElo "2287"]
[BlackElo "2266"]
[Annotator "NA"]
[PlyCount "54"]
[EventDate "2018.10.27"]
[EventType "team-tourn"]
[EventCountry "GER"]
[SourceTitle "playchess.com"]
[Source "ChessBase"]
[SourceQuality "1"]
[WhiteTeam "FC Bayern Muenchen"]
[BlackTeam "TuRa Harksheide"]
[TimeControl "40/5400+30:1800+30"]

1. d4 {[%emt 0:00:01]} Nf6 {[%emt 0:00:08]} 2. c4 {[%emt 0:00:05]} e6 {[%emt 0:00:10]} 3. g3 {[%emt 0:00:15]} d5 {[%emt 0:01:43]} 4. Nf3 {[%emt 0:00:20]} Bb4+ {[%emt 0:00:05]} 5. Bd2 {[%emt 0:00:09]} Be7 {[%emt 0:01:03]} 6. Bg2 {[%emt 0:58:08]} O-O {[%emt 0:00:11]} 7. Qc2 {[%emt 0:00:00]} c6 {[%emt 0:05:49]} 8. O-O {[%emt 0:00:00]} Nbd7 {[%emt 0:03:35]} 9. Rd1 {[%emt 0:00:00]} Ne4 {[%emt 0:00:16]} 10. Be3 {[%emt 0:00:00]} f5 {[%emt 0:04:44]} 11. Nfd2 {[%emt 0:00:00]} Qe8 {[%emt 0:07:48]} 12. Nxe4 {[%emt 0:00:00]} fxe4 {[%emt 0:02:49]} 13. f3 {[%emt 0:00:00]} Nf6 {[%emt 0:05:10]} 14. Nd2 {[%emt 0:00:00]} Bd6 {[%emt 0:04:39]} 15. Nf1 {[%emt 0:10:43]} e5 {[%emt 0:09:22]} 16. cxd5 {[%emt 0:00:59]} exf3 {[%emt 0:00:42]} 17. exf3 {[%emt 0:01:42]} Nxd5 {[%emt 0:02:31]} 18. Bf2 {[%emt 0:02:40]} Bf5 {[%emt 0:00:28]} 19. Qb3 {[%emt 0:00:50]} e4 {[%emt 0:15:46]} 20. Re1 {[%emt 0:22:35]} Qf7 {[%emt 0:01:35]} 21. f4 {[%emt 0:00:12]} g5 {[%emt 0:04:45]} 22. Bxe4 {[%emt 0:01:42]} gxf4 {[%emt 0:00:43]} 23. Bxf5 {[%emt 0:01:01]} Qxf5 {[%emt 0:00:12]} 24. gxf4 {[%emt 0:00:34]} Kh8 {[%emt 0:00:51]} 25. Ng3 {[%emt 0:00:27]} Qg4 {[%emt 0:03:48]} 26. Qd3 {[%emt 0:00:33]} Nxf4 {[%emt 0:00:13]} 27. Qe4 {[%emt 0:00:24]} Nh3+ {[%emt 0:00:14]} 0-1

[Event "1.FrauenBL 2018-19"]
[Site "Berlin"]
[Date "2019.03.02"]
[Round "10.7"]
[White "Manusina, Nicole"]
[Black "Belenkaya, Dina"]
[Result "0-1"]
[ECO "B12"]
[WhiteElo "1988"]
[BlackElo "2360"]
[Annotator "NA"]
[PlyCount "68"]
[EventDate "2018.10.27"]
[EventType "team-tourn"]
[EventCountry "GER"]
[SourceTitle "playchess.com"]
[Source "ChessBase"]
[SourceQuality "1"]
[WhiteTeam "SK Lehrte"]
[BlackTeam "Bad Koenigshofen"]
[TimeControl "40/5400+30:1800+30"]

1. e4 {[%emt 0:00:03]} c6 {[%emt 0:00:27]} 2. d4 {[%emt 0:00:07]} d5 {[%emt 0:00:31]} 3. e5 {[%emt 0:00:13]} c5 {[%emt 0:00:00]} 4. dxc5 {[%emt 0:00:38]} Nc6 {[%emt 0:01:19]} 5. Nf3 {[%emt 0:00:11]} Bg4 {[%emt 0:00:36]} 6. Bb5 {[%emt 0:00:19]} Qa5+ {[%emt 0:00:31]} 7. Nc3 {[%emt 0:01:53]} e6 {[%emt 0:00:22]} 8. O-O {[%emt 0:08:52]} Bxc5 {[%emt 0:03:08]} 9. Bxc6+ {[%emt 0:00:00]} bxc6 {[%emt 0:01:27]} 10. Qd3 {[%emt 0:11:56]} Ne7 {[%emt 0:00:39]} 11. Bf4 {[%emt 0:06:25]} O-O {[%emt 0:02:16]} 12. a3 {[%emt 0:01:51]} Qc7 {[%emt 0:20:42]} 13. Rae1 {[%emt 0:00:00]} a5 {[%emt 0:00:00]} 14. Na4 {[%emt 0:14:50]} Ba7 {[%emt 0:14:50]} 15. c4 {[%emt 0:11:46]} c5 {[%emt 0:00:00]} 16. cxd5 {[%emt 0:01:38]} exd5 {[%emt 0:00:00]} 17. Nc3 {[%emt 0:00:00]} Qc6 {[%emt 0:00:00]} 18. Bg5 {[%emt 0:00:00]} c4 {[%emt 0:00:00]} 19. Qd1 {[%emt 0:12:45]} Rfe8 {[%emt 0:00:00]} 20. Bxe7 {[%emt 0:00:00]} Rxe7 {[%emt 0:00:00]} 21. Qxd5 {[%emt 0:05:49]} Qxd5 {[%emt 0:00:00]} 22. Nxd5 {[%emt 0:00:06]} Rb7 {[%emt 0:04:59]} 23. Re2 {[%emt 0:12:37]} Rab8 {[%emt 0:02:25]} 24. Rd1 {[%emt 0:00:00]} Kf8 {[%emt 0:41:35]} 25. Rdd2 {[%emt 0:04:57]} Bf5 {[%emt 0:00:00]} 26. Nf4 {[%emt 0:00:04]} g5 {[%emt 0:00:00]} 27. Nd5 {[%emt 0:05:58]} Bd3 {[%emt 0:00:00]} 28. Re1 {[%emt 0:00:06]} g4 {[%emt 0:00:00]} 29. Ng5 {[%emt 0:00:53]} Rxb2 {[%emt 0:00:00]} 30. Rxb2 {[%emt 0:00:00]} Rxb2 {[%emt 0:00:00]} 31. Ne3 {[%emt 0:01:06]} Bxe3 {[%emt 0:00:00]} 32. fxe3 {[%emt 0:00:05]} h6 {[%emt 0:00:00]} 33. Nf3 {[%emt 0:01:09]} gxf3 {[%emt 0:00:00]} 34. gxf3 {[%emt 0:00:03]} c3 {[%emt 0:00:00]} 0-1